[Event "*** Titled Tuesday Blitz"]
[Site "Chess.com"]
[Date "2020.04.07"]
[Round "3"]
[White "Haykos"]
[Black "Oleg_Papayan"]
[Result "1-0"]
[WhiteElo "2599"]
[BlackElo "2328"]
[TimeControl "180+1"]
[EndTime "13:26:55 PDT"]
[Termination "Haykos won by resignation"]

1. e4 {[%clk 0:03:00.9]} 1... c5 {[%clk 0:02:35.8]} 2. Nf3 {[%clk 0:03:00.4]}
2... Nc6 {[%clk 0:02:35.8]} 3. Bb5 {[%clk 0:03:00.8]} 3... g6 {[%clk 0:02:35.5]}
4. Bxc6 {[%clk 0:03:01.1]} 4... bxc6 {[%clk 0:02:35.4]} 5. O-O {[%clk
0:03:01.1]} 5... Bg7 {[%clk 0:02:35.6]} 6. Re1 {[%clk 0:03:01.2]} 6... e5 {[%clk
0:02:35]} 7. Nc3 {[%clk 0:03:01.1]} 7... Ne7 {[%clk 0:02:32.9]} 8. b3 {[%clk
0:03:01.5]} 8... O-O {[%clk 0:02:32.6]} 9. Ba3 {[%clk 0:03:01.9]} 9... d6 {[%clk
0:02:32.6]} 10. Na4 {[%clk 0:03:02.3]} 10... f5 {[%clk 0:02:25.9]} 11. d3 {[%clk
0:03:01.4]} 11... f4 {[%clk 0:02:23]} 12. h3 {[%clk 0:02:59.4]} 12... h6 {[%clk
0:02:22.8]} 13. c3 {[%clk 0:02:59.6]} 13... g5 {[%clk 0:02:16.4]} 14. d4 {[%clk
0:02:57.5]} 14... cxd4 {[%clk 0:02:05.8]} 15. cxd4 {[%clk 0:02:57.5]} 15... exd4
{[%clk 0:02:06.3]} 16. Nxd4 {[%clk 0:02:56.6]} 16... f3 {[%clk 0:01:44.3]} 17.
Nxf3 {[%clk 0:02:49.1]} 17... Bxa1 {[%clk 0:01:42.8]} 18. Qxa1 {[%clk 0:02:50]}
18... Bxh3 {[%clk 0:01:39.6]} 19. Qd4 {[%clk 0:02:50.6]} 19... Ng6 {[%clk
0:01:25.6]} 20. Bxd6 {[%clk 0:02:46.2]} 20... Rxf3 {[%clk 0:01:10.9]} 21. gxf3
{[%clk 0:02:43.8]} 21... Nh4 {[%clk 0:01:11.4]} 22. Re3 {[%clk 0:02:37.9]} 22...
Bg2 {[%clk 0:00:46.8]} 23. Qc4+ {[%clk 0:02:10.3]} 23... Kg7 {[%clk 0:00:43.5]}
24. Be5+ {[%clk 0:02:09.2]} 24... Kg6 {[%clk 0:00:43.2]} 25. Qe6+ {[%clk
0:02:08.3]} 25... Kh5 {[%clk 0:00:34.1]} 26. Qf7+ {[%clk 0:02:08.3]} 1-0

[Event "*** Titled Tuesday Blitz"]
[Site "Chess.com"]
[Date "2020.04.07"]
[Round "3"]
[White "Panchenko_Dmitry"]
[Black "Alexander_Donchenko"]
[Result "0-1"]
[WhiteElo "2479"]
[BlackElo "2853"]
[TimeControl "180+1"]
[EndTime "13:26:58 PDT"]
[Termination "Alexander_Donchenko won by resignation"]

1. e4 {[%clk 0:03:00.9]} 1... c5 {[%clk 0:02:59.7]} 2. Nf3 {[%clk 0:03:00.6]}
2... d6 {[%clk 0:03:00.3]} 3. d4 {[%clk 0:03:00.5]} 3... cxd4 {[%clk 0:03:01.2]}
4. Nxd4 {[%clk 0:03:01.4]} 4... Nf6 {[%clk 0:03:01.8]} 5. Nc3 {[%clk 0:03:00.9]}
5... a6 {[%clk 0:03:02.4]} 6. Be3 {[%clk 0:03:00.4]} 6... e5 {[%clk 0:03:02.6]}
7. Nde2 {[%clk 0:03:00.3]} 7... Be6 {[%clk 0:03:01.9]} 8. f4 {[%clk 0:02:59]}
8... Be7 {[%clk 0:02:59.1]} 9. f5 {[%clk 0:02:58.9]} 9... Bd7 {[%clk 0:02:59.3]}
10. Ng3 {[%clk 0:02:40.8]} 10... h5 {[%clk 0:02:57.9]} 11. Be2 {[%clk
0:02:31.1]} 11... h4 {[%clk 0:02:57.5]} 12. Nh5 {[%clk 0:02:29.6]} 12... Nxh5
{[%clk 0:02:55.3]} 13. Bxh5 {[%clk 0:02:30.5]} 13... Bg5 {[%clk 0:02:55.7]} 14.
Bf2 {[%clk 0:02:05.9]} 14... Bc6 {[%clk 0:02:50.6]} 15. Bf3 {[%clk 0:02:03.5]}
15... Rh6 {[%clk 0:02:32.7]} 16. Qd3 {[%clk 0:01:56.2]} 16... Nd7 {[%clk
0:02:31.4]} 17. O-O {[%clk 0:01:49.7]} 17... Rc8 {[%clk 0:02:28.6]} 18. Rad1
{[%clk 0:01:47.3]} 18... Qa5 {[%clk 0:02:23.4]} 19. a3 {[%clk 0:01:41.4]} 19...
b5 {[%clk 0:02:17.1]} 20. Nd5 {[%clk 0:01:38.1]} 20... Bxd5 {[%clk 0:02:13.2]}
21. Qxd5 {[%clk 0:01:35.4]} 21... Rxc2 {[%clk 0:02:12.9]} 22. Qa8+ {[%clk
0:01:29.5]} 22... Ke7 {[%clk 0:02:11.6]} 23. Qg8 {[%clk 0:01:22.4]} 23... Nf6
{[%clk 0:01:43.3]} 24. Rxd6 {[%clk 0:01:06.7]} 24... Nxg8 {[%clk 0:01:40.8]} 0-1

[Event "*** Titled Tuesday Blitz"]
[Site "Chess.com"]
[Date "2020.04.07"]
[Round "3"]
[White "FelixJoseYnojosa"]
[Black "tufferguy"]
[Result "1-0"]
[WhiteElo "2638"]
[BlackElo "2408"]
[TimeControl "180+1"]
[EndTime "13:27:09 PDT"]
[Termination "FelixJoseYnojosa won by resignation"]

1. c4 {[%clk 0:03:00.7]} 1... e5 {[%clk 0:02:59.3]} 2. Nc3 {[%clk 0:03:00.7]}
2... Nf6 {[%clk 0:02:58.6]} 3. Nf3 {[%clk 0:03:00.6]} 3... Nc6 {[%clk
0:02:57.5]} 4. e4 {[%clk 0:02:58.7]} 4... Bb4 {[%clk 0:02:49.8]} 5. d3 {[%clk
0:02:58.8]} 5... d6 {[%clk 0:02:47.7]} 6. h3 {[%clk 0:02:58.3]} 6... O-O {[%clk
0:02:45.1]} 7. Be2 {[%clk 0:02:57.4]} 7... Nd4 {[%clk 0:02:43]} 8. O-O {[%clk
0:02:53.7]} 8... c6 {[%clk 0:02:32.7]} 9. Be3 {[%clk 0:02:50.3]} 9... Nxf3+
{[%clk 0:02:21]} 10. Bxf3 {[%clk 0:02:50.4]} 10... Be6 {[%clk 0:02:21.6]} 11.
Rc1 {[%clk 0:02:47]} 11... Bxc3 {[%clk 0:02:15.8]} 12. Rxc3 {[%clk 0:02:45]}
12... d5 {[%clk 0:02:16.7]} 13. exd5 {[%clk 0:02:43.8]} 13... cxd5 {[%clk
0:02:17.6]} 14. d4 {[%clk 0:02:41]} 14... e4 {[%clk 0:02:06.1]} 15. Be2 {[%clk
0:02:35.1]} 15... Rc8 {[%clk 0:02:00.3]} 16. c5 {[%clk 0:02:34.7]} 16... Nd7
{[%clk 0:01:50.6]} 17. b4 {[%clk 0:02:34.3]} 17... f5 {[%clk 0:01:50.5]} 18. Bf4
{[%clk 0:02:30.9]} 18... Kh8 {[%clk 0:01:26.2]} 19. b5 {[%clk 0:02:29.3]} 19...
g5 {[%clk 0:01:26.1]} 20. Bd6 {[%clk 0:02:28.9]} 20... Rg8 {[%clk 0:01:26]} 21.
Qa4 {[%clk 0:02:28]} 21... f4 {[%clk 0:01:12.6]} 22. c6 {[%clk 0:02:28]} 22...
bxc6 {[%clk 0:00:59.9]} 23. bxc6 {[%clk 0:02:27.8]} 23... Nf6 {[%clk 0:00:57.9]}
24. Be5 {[%clk 0:02:27.3]} 24... a5 {[%clk 0:00:37.6]} 25. c7 {[%clk 0:02:27]}
25... Qe7 {[%clk 0:00:35.9]} 26. Qa3 {[%clk 0:02:26.8]} 26... Qf7 {[%clk
0:00:34.6]} 27. Bh5 {[%clk 0:02:24.9]} 27... Qf8 {[%clk 0:00:27.4]} 28. Qxf8
{[%clk 0:02:19.5]} 28... Rgxf8 {[%clk 0:00:28.3]} 29. Rc6 {[%clk 0:02:19.7]} 1-0

[Event "*** Titled Tuesday Blitz"]
[Site "Chess.com"]
[Date "2020.04.07"]
[Round "3"]
[White "volcanoexplorer"]
[Black "joksijoksi"]
[Result "1-0"]
[WhiteElo "2543"]
[BlackElo "2267"]
[TimeControl "180+1"]
[EndTime "13:27:15 PDT"]
[Termination "volcanoexplorer won by resignation"]

1. e4 {[%clk 0:03:00.9]} 1... e6 {[%clk 0:02:59.2]} 2. d4 {[%clk 0:03:00.8]}
2... d5 {[%clk 0:02:56.7]} 3. Nc3 {[%clk 0:03:01.2]} 3... Bb4 {[%clk 0:02:52.1]}
4. e5 {[%clk 0:03:01.2]} 4... c5 {[%clk 0:02:50.3]} 5. a3 {[%clk 0:03:01.6]}
5... Bxc3+ {[%clk 0:02:49.7]} 6. bxc3 {[%clk 0:03:02.5]} 6... Qa5 {[%clk
0:02:50.2]} 7. Bd2 {[%clk 0:03:01]} 7... Qa4 {[%clk 0:02:50.1]} 8. Qg4 {[%clk
0:03:01.4]} 8... Kf8 {[%clk 0:02:48.2]} 9. Ra2 {[%clk 0:03:01]} 9... Nc6 {[%clk
0:02:44.9]} 10. Nf3 {[%clk 0:03:00.6]} 10... Nge7 {[%clk 0:02:42.8]} 11. Bd3
{[%clk 0:02:56.7]} 11... b6 {[%clk 0:02:28.5]} 12. O-O {[%clk 0:02:48.9]} 12...
Ba6 {[%clk 0:02:26.1]} 13. h3 {[%clk 0:02:25.9]} 13... Bxd3 {[%clk 0:02:06.4]}
14. cxd3 {[%clk 0:02:26.8]} 14... cxd4 {[%clk 0:02:04.6]} 15. cxd4 {[%clk
0:02:05]} 15... h5 {[%clk 0:01:49.3]} 16. Qf4 {[%clk 0:02:01.9]} 16... Nf5
{[%clk 0:01:38.3]} 17. Rc1 {[%clk 0:01:53.6]} 17... Ncxd4 {[%clk 0:01:16.7]} 18.
Bb4+ {[%clk 0:01:48.9]} 18... Kg8 {[%clk 0:01:09.3]} 19. Nxd4 {[%clk 0:01:48.8]}
19... a5 {[%clk 0:00:53.4]} 20. Nxf5 {[%clk 0:01:43]} 20... axb4 {[%clk
0:00:45.2]} 21. Ne7+ {[%clk 0:01:35.9]} 1-0

[Event "*** Titled Tuesday Blitz"]
[Site "Chess.com"]
[Date "2020.04.07"]
[Round "3"]
[White "wang5ter"]
[Black "Bathory44"]
[Result "0-1"]
[WhiteElo "2273"]
[BlackElo "2543"]
[TimeControl "180+1"]
[EndTime "13:27:25 PDT"]
[Termination "Bathory44 won by checkmate"]

1. Nf3 {[%clk 0:03:00.9]} 1... Nf6 {[%clk 0:02:59.1]} 2. e3 {[%clk 0:03:01.1]}
2... g6 {[%clk 0:02:59.6]} 3. d4 {[%clk 0:03:01.4]} 3... Bg7 {[%clk 0:03:00.1]}
4. c4 {[%clk 0:03:02.2]} 4... O-O {[%clk 0:03:00.2]} 5. Be2 {[%clk 0:03:02.7]}
5... c5 {[%clk 0:02:59.7]} 6. d5 {[%clk 0:03:02.6]} 6... e6 {[%clk 0:02:58.4]}
7. Nc3 {[%clk 0:03:01.7]} 7... exd5 {[%clk 0:02:58.5]} 8. cxd5 {[%clk
0:03:02.6]} 8... d6 {[%clk 0:02:58.7]} 9. O-O {[%clk 0:03:01.7]} 9... Bg4 {[%clk
0:02:58.8]} 10. h3 {[%clk 0:03:01]} 10... Bxf3 {[%clk 0:02:59]} 11. Bxf3 {[%clk
0:03:01.9]} 11... a6 {[%clk 0:02:59.2]} 12. a4 {[%clk 0:03:02.2]} 12... Nbd7
{[%clk 0:02:59.4]} 13. Bd2 {[%clk 0:02:58.9]} 13... c4 {[%clk 0:02:58.9]} 14.
Be2 {[%clk 0:02:56.2]} 14... Rc8 {[%clk 0:02:58.7]} 15. Qc2 {[%clk 0:02:50]}
15... Re8 {[%clk 0:02:58.3]} 16. f3 {[%clk 0:02:49.5]} 16... Nh5 {[%clk
0:02:52.3]} 17. Ne4 {[%clk 0:02:23.9]} 17... Nc5 {[%clk 0:02:33]} 18. Nxc5
{[%clk 0:02:12.8]} 18... Rxc5 {[%clk 0:02:31.9]} 19. e4 {[%clk 0:01:59.9]} 19...
Bd4+ {[%clk 0:02:28.1]} 20. Kh2 {[%clk 0:02:00]} 20... Qh4 {[%clk 0:02:25.3]}
21. Be1 {[%clk 0:01:57.3]} 21... Be5+ {[%clk 0:02:13.6]} 22. Kg1 {[%clk
0:01:44.7]} 22... Qf4 {[%clk 0:02:09.6]} 23. Bd2 {[%clk 0:01:22.3]} 23... Qh2+
{[%clk 0:01:20.7]} 24. Kf2 {[%clk 0:01:22.3]} 24... Bg3+ {[%clk 0:01:21.6]} 25.
Ke3 {[%clk 0:01:22]} 25... Nf4 {[%clk 0:01:17.1]} 26. Bb4 {[%clk 0:01:09.2]}
26... Nxd5+ {[%clk 0:01:13.6]} 27. Kd4 {[%clk 0:01:07.1]} 27... Bf2+ {[%clk
0:01:08.1]} 28. Rxf2 {[%clk 0:01:06.3]} 28... Qe5# {[%clk 0:01:07.7]} 0-1

[Event "*** Titled Tuesday Blitz"]
[Site "Chess.com"]
[Date "2020.04.07"]
[Round "3"]
[White "Eltaj_Safarli"]
[Black "pedromartinez91"]
[Result "1-0"]
[WhiteElo "3050"]
[BlackElo "2497"]
[TimeControl "180+1"]
[EndTime "13:27:26 PDT"]
[Termination "Eltaj_Safarli won by resignation"]

1. e4 {[%clk 0:03:00.9]} 1... e6 {[%clk 0:03:00.2]} 2. d4 {[%clk 0:03:00.5]}
2... d5 {[%clk 0:03:00.4]} 3. Nd2 {[%clk 0:03:01.4]} 3... dxe4 {[%clk
0:02:59.8]} 4. Nxe4 {[%clk 0:03:02.3]} 4... Nd7 {[%clk 0:03:00.1]} 5. Bd3 {[%clk
0:03:02.5]} 5... Ngf6 {[%clk 0:03:00.4]} 6. Qe2 {[%clk 0:03:03]} 6... c5 {[%clk
0:02:57.7]} 7. dxc5 {[%clk 0:03:02.6]} 7... Nxc5 {[%clk 0:02:45.1]} 8. Nxc5
{[%clk 0:03:03.5]} 8... Bxc5 {[%clk 0:02:45.3]} 9. Bd2 {[%clk 0:03:01.9]} 9...
Qb6 {[%clk 0:02:41.3]} 10. O-O-O {[%clk 0:03:00.2]} 10... Bd7 {[%clk 0:02:27.7]}
11. Nf3 {[%clk 0:02:57.1]} 11... Rc8 {[%clk 0:02:15.2]} 12. Ne5 {[%clk
0:02:54.1]} 12... Ba4 {[%clk 0:02:12.6]} 13. Kb1 {[%clk 0:02:49.5]} 13... Bd4
{[%clk 0:02:06.8]} 14. b3 {[%clk 0:02:46.1]} 14... O-O {[%clk 0:01:51.3]} 15.
Nc4 {[%clk 0:02:42.5]} 15... Rxc4 {[%clk 0:01:06.2]} 16. Bxc4 {[%clk 0:02:43.4]}
16... Bc6 {[%clk 0:00:55.5]} 17. f3 {[%clk 0:02:23.4]} 17... Nd5 {[%clk
0:00:50.7]} 18. Bxd5 {[%clk 0:02:17.4]} 18... Bxd5 {[%clk 0:00:51.6]} 19. c4
{[%clk 0:02:15.7]} 19... Bc6 {[%clk 0:00:47.8]} 20. Bc1 {[%clk 0:02:15.7]} 20...
Rc8 {[%clk 0:00:16.9]} 21. Bb2 {[%clk 0:02:11.7]} 21... Bc5 {[%clk 0:00:17.1]}
22. Qe5 {[%clk 0:02:08.2]} 22... Bf8 {[%clk 0:00:17]} 23. Rhe1 {[%clk
0:02:06.3]} 23... Qf2 {[%clk 0:00:16.4]} 24. Re2 {[%clk 0:02:03.1]} 24... Qh4
{[%clk 0:00:16.3]} 25. Rd4 {[%clk 0:02:01.1]} 25... Qh5 {[%clk 0:00:14.2]} 26.
Qxh5 {[%clk 0:01:58.4]} 1-0

[Event "*** Titled Tuesday Blitz"]
[Site "Chess.com"]
[Date "2020.04.07"]
[Round "3"]
[White "Abdimalik_Abdisalimov"]
[Black "marcodobrikov"]
[Result "1-0"]
[WhiteElo "2851"]
[BlackElo "2481"]
[TimeControl "180+1"]
[EndTime "13:27:27 PDT"]
[Termination "Abdimalik_Abdisalimov won by checkmate"]

1. d4 {[%clk 0:02:48.9]} 1... Nf6 {[%clk 0:02:53.3]} 2. c4 {[%clk 0:02:48]} 2...
g6 {[%clk 0:02:53]} 3. Nc3 {[%clk 0:02:46.6]} 3... d5 {[%clk 0:02:53.6]} 4. cxd5
{[%clk 0:02:47.2]} 4... Nxd5 {[%clk 0:02:54.5]} 5. e4 {[%clk 0:02:44.7]} 5...
Nxc3 {[%clk 0:02:54.9]} 6. bxc3 {[%clk 0:02:45.6]} 6... Bg7 {[%clk 0:02:55.5]}
7. Bc4 {[%clk 0:02:46.3]} 7... O-O {[%clk 0:02:55.1]} 8. Ne2 {[%clk 0:02:39.2]}
8... c5 {[%clk 0:02:56]} 9. O-O {[%clk 0:02:38.7]} 9... Nc6 {[%clk 0:02:51]} 10.
Be3 {[%clk 0:02:38.9]} 10... e5 {[%clk 0:02:39.4]} 11. dxc5 {[%clk 0:02:34.7]}
11... Qa5 {[%clk 0:02:36]} 12. Qb3 {[%clk 0:02:32.4]} 12... Qc7 {[%clk
0:02:30.2]} 13. Bd5 {[%clk 0:02:25.8]} 13... Bf6 {[%clk 0:02:17.1]} 14. c4
{[%clk 0:02:22.2]} 14... Be7 {[%clk 0:02:16.9]} 15. Rfd1 {[%clk 0:02:18.6]}
15... Kg7 {[%clk 0:02:00.1]} 16. Rac1 {[%clk 0:02:16]} 16... Qa5 {[%clk
0:01:52.5]} 17. Qb5 {[%clk 0:02:08.8]} 17... Qc7 {[%clk 0:01:45]} 18. Qa4 {[%clk
0:02:05.1]} 18... Bd7 {[%clk 0:01:44]} 19. Qa3 {[%clk 0:01:59.2]} 19... f5
{[%clk 0:01:38.1]} 20. exf5 {[%clk 0:01:51.9]} 20... gxf5 {[%clk 0:01:39]} 21.
f4 {[%clk 0:01:52]} 21... e4 {[%clk 0:01:38.6]} 22. Nc3 {[%clk 0:01:51.5]} 22...
Bf6 {[%clk 0:01:33.7]} 23. Nb5 {[%clk 0:01:50.9]} 23... Qc8 {[%clk 0:01:28.1]}
24. Nd6 {[%clk 0:01:49.4]} 24... Qc7 {[%clk 0:01:28.5]} 25. Qb3 {[%clk
0:01:49.2]} 25... Rab8 {[%clk 0:01:27.5]} 26. Rc2 {[%clk 0:01:45.2]} 26... Kh8
{[%clk 0:01:26.3]} 27. g3 {[%clk 0:01:36]} 27... b6 {[%clk 0:01:26.1]} 28. Nb5
{[%clk 0:01:35.7]} 28... Qc8 {[%clk 0:01:21.5]} 29. cxb6 {[%clk 0:01:35.7]}
29... axb6 {[%clk 0:01:22.4]} 30. Qa3 {[%clk 0:01:34.6]} 30... Be7 {[%clk
0:01:21.1]} 31. Qxe7 {[%clk 0:01:21.5]} 31... Nxe7 {[%clk 0:01:14.9]} 32. Bd4+
{[%clk 0:01:21.4]} 32... Rf6 {[%clk 0:01:15.6]} 33. Bxf6# {[%clk 0:01:21.6]} 1-0

[Event "*** Titled Tuesday Blitz"]
[Site "Chess.com"]
[Date "2020.04.07"]
[Round "3"]
[White "jk13"]
[Black "bazar-wokzal"]
[Result "1-0"]
[WhiteElo "2824"]
[BlackElo "2542"]
[TimeControl "180+1"]
[EndTime "13:27:34 PDT"]
[Termination "jk13 won by resignation"]

1. e4 {[%clk 0:03:00.9]} 1... c5 {[%clk 0:02:59]} 2. c3 {[%clk 0:03:01.4]} 2...
Nf6 {[%clk 0:02:58.3]} 3. e5 {[%clk 0:03:01.9]} 3... Nd5 {[%clk 0:02:58.4]} 4.
Bc4 {[%clk 0:03:02.8]} 4... Qc7 {[%clk 0:02:52.9]} 5. Nf3 {[%clk 0:03:01.9]}
5... e6 {[%clk 0:02:46.3]} 6. O-O {[%clk 0:03:01.2]} 6... Nc6 {[%clk 0:02:44.7]}
7. d4 {[%clk 0:03:00]} 7... cxd4 {[%clk 0:02:43.7]} 8. cxd4 {[%clk 0:02:59.5]}
8... d6 {[%clk 0:02:43]} 9. Bxd5 {[%clk 0:02:38.8]} 9... exd5 {[%clk 0:02:42.2]}
10. Nc3 {[%clk 0:02:39.7]} 10... Be6 {[%clk 0:02:33.2]} 11. Bf4 {[%clk
0:02:39.7]} 11... a6 {[%clk 0:02:26.4]} 12. Re1 {[%clk 0:02:37.3]} 12... O-O-O
{[%clk 0:02:11.5]} 13. Rc1 {[%clk 0:02:34.4]} 13... Kb8 {[%clk 0:02:07.6]} 14.
b4 {[%clk 0:02:18.8]} 14... Qb6 {[%clk 0:01:59]} 15. a3 {[%clk 0:02:13.1]} 15...
h6 {[%clk 0:01:55.9]} 16. Na4 {[%clk 0:02:00]} 16... Qb5 {[%clk 0:01:53.9]} 17.
exd6 {[%clk 0:02:00.3]} 17... Bxd6 {[%clk 0:01:52.2]} 18. Bxd6+ {[%clk 0:02:00]}
18... Rxd6 {[%clk 0:01:52.1]} 19. Rc5 {[%clk 0:02:00.8]} 19... Nxd4 {[%clk
0:01:36.3]} 20. Rxb5 {[%clk 0:01:53.9]} 20... Nxb5 {[%clk 0:01:34.8]} 21. Qd3
{[%clk 0:01:49.2]} 21... Rhd8 {[%clk 0:01:27.6]} 22. Nd4 {[%clk 0:01:47.7]}
22... Nc7 {[%clk 0:01:14.7]} 23. Nc5 {[%clk 0:01:44.9]} 23... Bc8 {[%clk
0:01:13.6]} 24. Re7 {[%clk 0:01:43.7]} 24... Rf6 {[%clk 0:01:08.7]} 25. h3
{[%clk 0:01:40.2]} 25... Re8 {[%clk 0:01:03.4]} 26. Rxe8 {[%clk 0:01:36.1]}
26... Nxe8 {[%clk 0:01:03.3]} 27. Qg3+ {[%clk 0:01:35.5]} 27... Ka7 {[%clk
0:01:02]} 28. Qe5 {[%clk 0:01:33.5]} 28... Nd6 {[%clk 0:00:58.9]} 29. Qxd5
{[%clk 0:01:31.4]} 1-0

[Event "*** Titled Tuesday Blitz"]
[Site "Chess.com"]
[Date "2020.04.07"]
[Round "3"]
[White "ShahMatKanal"]
[Black "swimmerchess"]
[Result "0-1"]
[WhiteElo "2588"]
[BlackElo "2819"]
[TimeControl "180+1"]
[EndTime "13:27:37 PDT"]
[Termination "swimmerchess won by resignation"]

1. d4 {[%clk 0:03:00.9]} 1... Nf6 {[%clk 0:02:59.4]} 2. c4 {[%clk 0:02:59.6]}
2... g6 {[%clk 0:02:59.7]} 3. Nc3 {[%clk 0:02:58.6]} 3... Bg7 {[%clk 0:02:59.4]}
4. e4 {[%clk 0:02:58.3]} 4... d6 {[%clk 0:02:59.8]} 5. Be2 {[%clk 0:02:53.1]}
5... O-O {[%clk 0:02:59.3]} 6. Nf3 {[%clk 0:02:53.4]} 6... e5 {[%clk 0:02:59.4]}
7. d5 {[%clk 0:02:52.2]} 7... Na6 {[%clk 0:02:58.3]} 8. O-O {[%clk 0:02:50.1]}
8... Nc5 {[%clk 0:02:57.7]} 9. Qc2 {[%clk 0:02:49.8]} 9... a5 {[%clk 0:02:56.8]}
10. Bg5 {[%clk 0:02:49.7]} 10... h6 {[%clk 0:02:54.4]} 11. Be3 {[%clk
0:02:48.9]} 11... Ng4 {[%clk 0:02:53.6]} 12. Bxc5 {[%clk 0:02:48.9]} 12... dxc5
{[%clk 0:02:54.5]} 13. h3 {[%clk 0:02:49.4]} 13... Nf6 {[%clk 0:02:54.7]} 14.
Nxe5 {[%clk 0:02:49.9]} 14... Nxd5 {[%clk 0:02:54.8]} 15. cxd5 {[%clk
0:02:50.8]} 15... Bxe5 {[%clk 0:02:54.3]} 16. f4 {[%clk 0:02:51.4]} 16... Bd4+
{[%clk 0:02:53.8]} 17. Kh2 {[%clk 0:02:51.8]} 17... c6 {[%clk 0:02:43.2]} 18.
Qd3 {[%clk 0:02:08.2]} 18... cxd5 {[%clk 0:02:33.1]} 19. exd5 {[%clk 0:02:07.2]}
19... Bf5 {[%clk 0:02:32.4]} 20. Qf3 {[%clk 0:02:06.2]} 20... Re8 {[%clk
0:02:30.3]} 21. Bc4 {[%clk 0:01:44.3]} 21... Re3 {[%clk 0:02:27.5]} 22. Qd1
{[%clk 0:01:42.8]} 22... Qh4 {[%clk 0:02:25.8]} 23. Rf3 {[%clk 0:01:06.8]} 23...
Bg4 {[%clk 0:02:22.6]} 24. Rxe3 {[%clk 0:00:43]} 24... Bxd1 {[%clk 0:02:21.9]}
25. g3 {[%clk 0:00:41.7]} 25... Qf6 {[%clk 0:02:15.2]} 26. Re1 {[%clk
0:00:06.1]} 26... Bc2 {[%clk 0:02:13.2]} 27. Rac1 {[%clk 0:00:03.7]} 27... Bf5
{[%clk 0:02:12.9]} 0-1

[Event "*** Titled Tuesday Blitz"]
[Site "Chess.com"]
[Date "2020.04.07"]
[Round "3"]
[White "Enriquack"]
[Black "MisaPap"]
[Result "0-1"]
[WhiteElo "2406"]
[BlackElo "2663"]
[TimeControl "180+1"]
[EndTime "13:27:39 PDT"]
[Termination "MisaPap won by resignation"]

1. e4 {[%clk 0:03:00.3]} 1... c5 {[%clk 0:02:58.5]} 2. Nf3 {[%clk 0:03:00.1]}
2... g6 {[%clk 0:02:59]} 3. Bc4 {[%clk 0:02:55.6]} 3... Nc6 {[%clk 0:02:57.1]}
4. O-O {[%clk 0:02:50.3]} 4... Bg7 {[%clk 0:02:57]} 5. Bb5 {[%clk 0:02:49.8]}
5... Nf6 {[%clk 0:02:53.8]} 6. Re1 {[%clk 0:02:45.9]} 6... O-O {[%clk
0:02:53.1]} 7. d3 {[%clk 0:02:35.4]} 7... Qb6 {[%clk 0:02:51.7]} 8. Nc3 {[%clk
0:02:28.8]} 8... d6 {[%clk 0:02:47.6]} 9. h3 {[%clk 0:02:25.9]} 9... a6 {[%clk
0:02:46.6]} 10. Bc4 {[%clk 0:02:23.9]} 10... e6 {[%clk 0:02:40.7]} 11. a3 {[%clk
0:02:04.9]} 11... Qc7 {[%clk 0:02:38.9]} 12. Bg5 {[%clk 0:01:58.6]} 12... b5
{[%clk 0:02:38.1]} 13. Ba2 {[%clk 0:01:58.1]} 13... h6 {[%clk 0:02:37.9]} 14.
Bh4 {[%clk 0:01:57.4]} 14... Bb7 {[%clk 0:02:27.6]} 15. Qd2 {[%clk 0:01:54.4]}
15... Rac8 {[%clk 0:02:21.6]} 16. Bg3 {[%clk 0:01:45.2]} 16... Nd4 {[%clk
0:02:16.6]} 17. Nh2 {[%clk 0:01:15.6]} 17... Nh5 {[%clk 0:02:11.6]} 18. Bh4
{[%clk 0:01:09.2]} 18... g5 {[%clk 0:02:07.7]} 19. Bxg5 {[%clk 0:01:07.6]} 19...
hxg5 {[%clk 0:02:06.3]} 20. Qxg5 {[%clk 0:01:07.2]} 20... Nf6 {[%clk 0:02:03.5]}
21. Re3 {[%clk 0:00:57.2]} 21... Nh7 {[%clk 0:02:00.8]} 22. Qh5 {[%clk
0:00:54.4]} 22... Nxc2 {[%clk 0:01:59.3]} 23. Rg3 {[%clk 0:00:53.8]} 23... Nxa1
{[%clk 0:01:45]} 24. Qh6 {[%clk 0:00:30.8]} 24... f5 {[%clk 0:01:41.9]} 25.
Qxe6+ {[%clk 0:00:22.8]} 25... Kh8 {[%clk 0:01:40.2]} 0-1

[Event "*** Titled Tuesday Blitz"]
[Site "Chess.com"]
[Date "2020.04.07"]
[Round "3"]
[White "Bulldog167"]
[Black "sorrm8thatscheckm8"]
[Result "0-1"]
[WhiteElo "2628"]
[BlackElo "2431"]
[TimeControl "180+1"]
[EndTime "13:27:39 PDT"]
[Termination "sorrm8thatscheckm8 won on time"]

1. e4 {[%clk 0:03:00.9]} 1... c5 {[%clk 0:02:27.2]} 2. Nf3 {[%clk 0:02:58.7]}
2... Nc6 {[%clk 0:02:27.8]} 3. d4 {[%clk 0:02:58.4]} 3... cxd4 {[%clk
0:02:28.7]} 4. Nxd4 {[%clk 0:02:59.3]} 4... Nf6 {[%clk 0:02:29.3]} 5. Nc3 {[%clk
0:02:59.3]} 5... e5 {[%clk 0:02:29.7]} 6. Ndb5 {[%clk 0:02:59.5]} 6... d6 {[%clk
0:02:29.7]} 7. Bg5 {[%clk 0:03:00]} 7... a6 {[%clk 0:02:29.5]} 8. Na3 {[%clk
0:03:00.5]} 8... b5 {[%clk 0:02:29.2]} 9. Nd5 {[%clk 0:03:01]} 9... Be7 {[%clk
0:02:29.3]} 10. Bxf6 {[%clk 0:03:01.5]} 10... Bxf6 {[%clk 0:02:29.8]} 11. c3
{[%clk 0:03:02.2]} 11... Bg5 {[%clk 0:02:30.1]} 12. Nc2 {[%clk 0:03:02]} 12...
Rb8 {[%clk 0:02:30.7]} 13. g3 {[%clk 0:02:56.4]} 13... O-O {[%clk 0:02:29.6]}
14. h4 {[%clk 0:02:56.4]} 14... Bh6 {[%clk 0:02:27.3]} 15. Bh3 {[%clk
0:02:56.5]} 15... Bxh3 {[%clk 0:02:26.8]} 16. Rxh3 {[%clk 0:02:56.3]} 16... f5
{[%clk 0:02:27.1]} 17. exf5 {[%clk 0:02:51.1]} 17... Rxf5 {[%clk 0:02:26.1]} 18.
Nce3 {[%clk 0:02:51.5]} 18... Rf7 {[%clk 0:02:23.6]} 19. Qg4 {[%clk 0:02:50.8]}
19... Bxe3 {[%clk 0:02:20.7]} 20. Nxe3 {[%clk 0:02:50.4]} 20... Ne7 {[%clk
0:02:20]} 21. Rd1 {[%clk 0:02:46.6]} 21... b4 {[%clk 0:02:16.9]} 22. cxb4 {[%clk
0:02:44.5]} 22... d5 {[%clk 0:02:15.8]} 23. Qe6 {[%clk 0:02:40.5]} 23... Qf8
{[%clk 0:02:01.5]} 0-1